lending/lending_fUSD_20260317
["ID","MTS","AMOUNT","RATE_DAILY","PERIOD"]
[408497824,1773761446008,162.41,7.662e-05,2]
[408497825,1773761446057,162.41,8.252e-05,2]
[408497826,1773761446189,162.41,8.841e-05,2]
[408497827,1773761446213,-151.0,0.00012753,2]
[408497828,1773761446223,-500.0,0.00013698,2]
[408497829,1773761446233,-500.0,0.00013698,2]
[408497830,1773761446243,-500.0,0.00013698,2]
[408497831,1773761446251,-500.0,0.00013698,2]
[408497832,1773761446261,-500.0,0.00013698,2]
[408497833,1773761446270,-500.0,0.00013698,2]
[408497834,1773761446279,-500.0,0.00013698,2]
[408497835,1773761446288,-500.0,0.00013698,2]
[408497836,1773761446297,-500.0,0.00013698,2]
[408497838,1773761446306,-630.245,0.00015067,2]
[408497840,1773761446316,-304.995305,0.00016438,2]
[408497842,1773761446325,-304.995305,0.00016438,2]
[408497844,1773761446334,-304.995305,0.00016438,2]
[408497846,1773761446344,-304.995305,0.00016438,2]
[408497848,1773761446353,-304.995305,0.00016438,2]
[408497850,1773761446362,-304.995305,0.0001727,2]
[408497852,1773761446372,-304.995305,0.0001727,2]
[408497854,1773761446382,-4214.4277015,0.00018,2]
[408497859,1773761446418,162.41,9.431e-05,2]
[408497861,1773761446662,-162.41,0.0001002,2]
[408497862,1773761446672,-162.41,0.0001061,2]
[408497863,1773761446681,-162.41,0.00011199,2]
[408497864,1773761446691,-162.41,0.00011788,2]
[408497865,1773761446701,-162.41,0.00012378,2]
[408497866,1773761446711,-162.41,0.00012967,2]
[408497867,1773761446721,-328.51179547,0.00014387,2]
[408497868,1773761446732,-171.48820453,0.00014387,2]
[408497869,1773761446741,-500.0,0.00015066,2]
[408497870,1773761446750,-304.995305,0.00016438,2]
[408497871,1773761446759,-304.995305,0.00016438,2]
[408497872,1773761446768,-304.995305,0.00016438,2]
[408497873,1773761446778,-304.995305,0.00016438,2]
[408497874,1773761446787,-304.995305,0.00016438,2]
[408497875,1773761446799,-304.995305,0.00016438,2]
[408497876,1773761446809,-500.0,0.00017194,2]
[408497877,1773761446819,-304.995305,0.0001727,2]
[408497878,1773761446828,-304.995305,0.0001727,2]
[408497879,1773761446838,-500.0,0.00017999,2]
[408497880,1773761446847,-500.0,0.00017999,2]
[408497881,1773761446856,-500.0,0.00017999,2]
[408497882,1773761446866,-66630.75545692,0.00018,2]
[408497883,1773761446911,-167.73240145,0.00013424,2]
[408497887,1773762198575,2000.0,0.00032877,120]
[408497888,1773762339219,3320.0,0.00032877,120]
[408497889,1773762348366,317.78,0.00032877,120]
[408497890,1773762446864,32007.45922572,0.00032877,120]
[408497893,1773762631831,-300.0,0.00011552,2]
[408497894,1773762631841,-694.88176241,0.00011552,2]
[408497895,1773762631872,-505.11823759,0.00011552,2]
[408497896,1773762631882,-32966.233,0.00011553,2]
[408497897,1773762631891,-343.7225835,0.00011711,2]
[408497898,1773762631901,-1048.62983255,0.00011811,2]
[408497899,1773762631910,-333.0,0.00011888,2]
[408497900,1773762631921,-3656.21013929,0.00012443,2]
[408497901,1773762631944,-335.76986071,0.00012443,2]
[408497902,1773762631954,-343.72258349,0.00012518,2]
[408497903,1773762631963,-200.0,0.00012518,2]
[408497905,1773762631973,-366.0,0.00012688,2]
[408497907,1773762631983,-250.0,0.00012707,2]
[408497908,1773762631993,-1680.0,0.00012708,2]
[408497909,1773762632004,-1000.0,0.00012813,2]
[408497911,1773762632014,-333.0,0.00012888,2]
[408497912,1773762632024,-1486.98,0.00013014,2]
[408497913,1773762632034,-343.72258349,0.00013324,2]
[408497914,1773762632044,-151.0,0.00013357,2]
[408497915,1773762632054,-156.587,0.00013357,2]
[408497916,1773762632064,-193.9920317,0.00013357,2]
[408497917,1773762632074,-150.0,0.00013413,2]
[408497918,1773762632083,-4540.055,0.00013414,2]
[408497919,1773762632093,-4142.8479,0.00013414,2]
[408497920,1773762632103,-23458.40860965,0.00013414,2]
[408497921,1773762632113,-150.0,0.00013424,2]
[408497922,1773762632128,-150.0,0.00013424,2]
[408497923,1773762632138,-293.41739625,0.00013424,2]
[408497924,1773762632148,-500.0,0.00013424,2]
[408497925,1773762632159,-642.0,0.00013424,2]
[408497926,1773762632168,-150.0,0.00013424,2]
[408497927,1773762632178,-150.0,0.00013424,2]
[408497928,1773762632188,-150.0,0.00013424,2]
[408497929,1773762632198,-154.65354927,0.00013424,2]
[408497930,1773762632207,-500.0,0.00013424,2]
[408497931,1773762632217,-500.0,0.00013424,2]
[408497932,1773762632227,-427.34335344,0.00013424,2]
[408497933,1773762632236,-150.99,0.00013514,2]
[408497934,1773762632245,-999.99,0.00013514,2]
[408497935,1773762632255,-9999.99,0.00013514,2]
[408497936,1773762632264,-3848.03,0.00013514,2]
[408497937,1773762632274,-9999.99,0.00013514,2]
[408497938,1773762632283,-4999.99,0.00013514,2]
[408497939,1773762632293,-1842.25,0.00013514,2]
[408497940,1773762632302,-299.99,0.00013514,2]
[408497941,1773762632312,-81987.69,0.00013514,2]
[408497942,1773762632322,-150.99,0.00013514,2]
[408497943,1773762632332,-9999.99,0.00013514,2]
[408497944,1773762632341,-500.0,0.00013573,2]
[408497945,1773762632350,-150.0,0.00013637,2]
[408497946,1773762632360,-500.0,0.0001369,2]
[408497947,1773762632370,-250.0,0.0001369,2]
[408497948,1773762632379,-250.0,0.0001369,2]
[408497949,1773762632389,-250.0,0.0001369,2]
[408497950,1773762632398,-250.0,0.0001369,2]
[408497951,1773762632407,-250.0,0.0001369,2]
[408497952,1773762632416,-250.0,0.0001369,2]
[408497953,1773762632426,-250.0,0.0001369,2]
[408497954,1773762632435,-250.0,0.0001369,2]
[408497955,1773762632445,-250.0,0.0001369,2]
[408497956,1773762632454,-250.0,0.0001369,2]
[408497957,1773762632463,-250.0,0.0001369,2]
[408497958,1773762632472,-250.0,0.0001369,2]
[408497959,1773762632481,-200.0,0.0001369,2]
[408497960,1773762632491,-260.4103811,0.0001369,2]
[408497961,1773762632501,-500.0,0.00013698,2]
[408497962,1773762632510,-500.0,0.00013698,2]
[408497963,1773762632521,-500.0,0.00013698,2]
[408497964,1773762632531,-500.0,0.00013698,2]
[408497965,1773762632540,-500.0,0.00013698,2]
[408497966,1773762632550,-500.0,0.00013698,2]
[408497967,1773762632559,-500.0,0.00013698,2]
[408497968,1773762632568,-500.0,0.00013698,2]
[408497969,1773762632578,-500.0,0.00013698,2]
[408497970,1773762632587,-500.0,0.00013698,2]
[408497971,1773762632596,-500.0,0.00013698,2]
[408497972,1773762632605,-500.0,0.00013698,2]
[408497973,1773762632614,-500.0,0.00013698,2]
[408497974,1773762632625,-500.0,0.00013698,2]
[408497975,1773762632635,-577.0574034,0.00013698,2]
[408497976,1773762632644,-500.0,0.00013698,2]
[408497977,1773762632653,-500.0,0.00013698,2]
[408497978,1773762632663,-500.0,0.00013698,2]
[408497979,1773762632673,-553.49386102,0.00013698,2]
[408497980,1773762632682,-500.0,0.00013698,2]
[408497981,1773762632691,-500.0,0.00013698,2]
[408497982,1773762632701,-500.0,0.00013698,2]
[408497983,1773762632710,-500.0,0.00013698,2]
[408497984,1773762632721,-500.0,0.00013698,2]
[408497985,1773762632730,-600.49565647,0.00013698,2]
[408497986,1773762632739,-500.0,0.00013698,2]
[408497987,1773762632749,-500.0,0.00013698,2]
[408497988,1773762632758,-500.0,0.00013698,2]
[408497989,1773762632769,-500.0,0.00013698,2]
[408497990,1773762632779,-500.0,0.00013698,2]
[408497991,1773762632788,-644.96,0.00013698,2]
[408497992,1773762632797,-644.96,0.00013698,2]
[408497993,1773762632807,-644.96,0.00013698,2]
[408497994,1773762632816,-644.96,0.00013698,2]
[408497995,1773762632825,-644.96,0.00013698,2]
[408497996,1773762632835,-644.96,0.00013698,2]
[408497997,1773762632844,-644.96,0.00013698,2]
[408497998,1773762632854,-644.96,0.00013698,2]
[408497999,1773762632863,-700.86,0.00013698,2]
[408498000,1773762632873,-700.86,0.00013698,2]
[408498001,1773762632882,-700.86,0.00013698,2]
[408498002,1773762632891,-700.86,0.00013698,2]
[408498003,1773762632902,-700.86,0.00013698,2]
[408498004,1773762632912,-700.86,0.00013698,2]
[408498005,1773762632921,-700.86,0.00013698,2]
[408498006,1773762632931,-700.86,0.00013698,2]
[408498007,1773762632940,-700.86,0.00013698,2]
[408498008,1773762632950,-500.0,0.00013698,2]
[408498009,1773762632959,-500.0,0.00013698,2]
[408498010,1773762632969,-500.0,0.00013698,2]
[408498011,1773762632979,-500.0,0.00013698,2]
[408498012,1773762632988,-177.63188648,0.00013698,2]
[408498013,1773762632997,-500.0,0.00013698,2]
[408498014,1773762633007,-500.0,0.00013698,2]
[408498015,1773762633016,-500.0,0.00013698,2]
[408498016,1773762633027,-500.0,0.00013698,2]
[408498017,1773762633036,-500.0,0.00013698,2]
[408498018,1773762633045,-265.99573624,0.00013698,2]
[408498019,1773762633055,-500.0,0.00013698,2]
[408498020,1773762633065,-500.0,0.00013698,2]
[408498021,1773762633075,-500.0,0.00013698,2]
[408498022,1773762633085,-500.0,0.00013698,2]
[408498023,1773762633095,-500.0,0.00013698,2]
[408498024,1773762633105,-500.0,0.00013698,2]
[408498025,1773762633120,-500.0,0.00013698,2]
[408498026,1773762633130,-500.0,0.00013698,2]
[408498027,1773762633141,-500.0,0.00013698,2]
[408498028,1773762633152,-500.0,0.00013698,2]
[408498029,1773762633162,-500.0,0.00013698,2]
[408498030,1773762633172,-575.72205719,0.00013698,2]
[408498031,1773762633181,-500.0,0.00013698,2]
[408498032,1773762633192,-500.0,0.00013698,2]
[408498033,1773762633202,-500.0,0.00013698,2]
[408498034,1773762633212,-500.0,0.00013698,2]
[408498035,1773762633222,-500.0,0.00013698,2]
[408498036,1773762633339,-500.0,0.00013698,2]
[408498037,1773762633348,-500.0,0.00013698,2]
[408498038,1773762633358,-591.23745448,0.00013698,2]
[408498039,1773762633367,-500.0,0.00013698,2]
[408498040,1773762633376,-507.45233421,0.00013698,2]
[408498041,1773762633385,-748.33,0.00013698,2]
[408498042,1773762633395,-500.0,0.00013698,2]
[408498043,1773762633404,-500.0,0.00013698,2]
[408498044,1773762633414,-500.0,0.00013698,2]
[408498045,1773762633423,-500.0,0.00013698,2]
[408498046,1773762633433,-410.66648104,0.00013698,2]
[408498047,1773762633442,-343.50730924,0.00013698,2]
[408498048,1773762633451,-664.61455226,0.00013699,2]
[408498049,1773762633461,-197.55,0.000137,2]
[408498050,1773762633470,-500.0,0.00013745,2]
[408498051,1773762633479,-26072.5954,0.00013768,2]
[408498052,1773762633488,-500.0,0.000138,2]
[408498053,1773762633497,-2143.00922027,0.00013808,2]
[408498054,1773762633508,-3240.0,0.00013845,2]
[408498055,1773762633519,-5173.35,0.00013845,2]
[408498056,1773762633528,-500.0,0.00013855,2]
[408498057,1773762633538,-500.0,0.00013882,2]
[408498058,1773762633547,-500.0,0.00013882,2]
[408498059,1773762633557,-500.0,0.00013882,2]
[408498060,1773762633566,-500.0,0.00013882,2]
[408498061,1773762633575,-500.0,0.00013882,2]
[408498062,1773762633584,-500.0,0.00013882,2]
[408498063,1773762633594,-333.0,0.00013888,2]
[408498064,1773762633604,-23458.40860964,0.00013912,2]
[408498065,1773762633614,-748.33,0.00013972,2]
[408498066,1773762633623,-2351.0,0.00013978,2]
[408498067,1773762633633,-336.84,0.00014189,2]
[408498068,1773762633642,-200.0,0.00014238,2]
[408498069,1773762633651,-270.0455652,0.00014238,2]
[408498070,1773762633661,-748.33,0.00014246,2]
[408498071,1773762633670,-500.0,0.00014387,2]
[408498072,1773762633679,-644.96,0.00014387,2]
[408498073,1773762633689,-700.86,0.00014387,2]
[408498074,1773762633699,-500.0,0.00014387,2]
[408498075,1773762633707,-23458.40860964,0.00014411,2]
[408498076,1773762633717,-500.0,0.0001443,2]
[408498077,1773762633727,-17044.89474762,0.00014451,2]
[408498078,1773762633736,-197.55,0.00014461,2]
[408498079,1773762633746,-748.33,0.0001452,2]
[408498080,1773762633755,-255.0,0.00014526,2]
[408498081,1773762633765,-1486.98,0.0001464,2]
[408498082,1773762633775,-200.0,0.00014786,2]
[408498083,1773762633784,-280.03725112,0.00014786,2]
[408498084,1773762633794,-748.33,0.00014794,2]
[408498085,1773762633803,-333.0,0.00014888,2]
[408498086,1773762633813,-23458.40860964,0.00014909,2]
[408498087,1773762633823,-250.0,0.00015,2]
[408498088,1773762633833,-700.86,0.00015066,2]
[408498089,1773762633842,-500.0,0.00015066,2]
[408498090,1773762633852,-748.37,0.00015068,2]
[408498091,1773762633861,-1344.0,0.00015167,2]
[408498092,1773762633871,-3590.219,0.00015167,2]
[408498093,1773762633880,-1044.0,0.00015167,2]
[408498094,1773762633890,-620.0,0.00015167,2]
[408498095,1773762633900,-1260.0,0.00015167,2]
[408498096,1773762633909,-1214.0,0.00015167,2]
[408498097,1773762633918,-923.0,0.00015167,2]
[408498098,1773762633927,-3756.0,0.00015167,2]
[408498099,1773762633937,-425.351,0.00015167,2]
[408498100,1773762633946,-2500.0,0.00015182,2]
[408498101,1773762633956,-197.55,0.00015222,2]
[408498102,1773762633965,-200.0,0.00015334,2]
[408498103,1773762633975,-290.39862941,0.00015334,2]
[408498104,1773762633984,-3292.0,0.00015376,2]
[408498105,1773762633994,-23458.40860964,0.00015408,2]
[408498106,1773762634003,-683.23501295,0.00015438,2]
[408498107,1773762634013,-166.66,0.00015455,2]
[408498108,1773762634024,-167.96,0.00015608,2]
[408498109,1773762634034,-167.96,0.00015608,2]
[408498110,1773762634043,-500.0,0.00015695,2]
[408498111,1773762634052,-433.0,0.00015733,2]
[408498112,1773762634061,-166.66,0.00015781,2]
[408498113,1773762634071,-500.0,0.00015784,2]
[408498114,1773762634080,-644.96,0.00015784,2]
[408498115,1773762634089,-2305.81324879,0.00015805,2]
[408498116,1773762634099,-204.04031347,0.00015882,2]
[408498117,1773762634109,-301.1433787,0.00015882,2]
[408498118,1773762634120,-333.0,0.00015888,2]
[408498119,1773762634129,-2000.0,0.0001589,2]
[408498120,1773762634139,-1538.0,0.00015895,2]
[408498121,1773762634148,-23458.40860964,0.00015906,2]
[408498122,1773762634157,-167.96,0.0001592,2]
[408498123,1773762634167,-167.96,0.0001592,2]
[408498124,1773762634176,-1094.9413971,0.00015966,2]
[408498125,1773762634185,-197.55,0.00015984,2]
[408498126,1773762634197,-166.66,0.00016106,2]
[408498127,1773762634206,-167.48873,0.00016109,7]
[408498128,1773762634215,-391.186506,0.00016109,7]
[408498129,1773762634225,-160.0,0.00016109,7]
[408498130,1773762634234,-395.073777,0.00016109,7]
[408498131,1773762634243,-630.147554,0.00016109,7]
[408498132,1773762634253,-9999.99,0.00016116,2]
[408498133,1773762634262,-150.0,0.00016164,2]
[408498134,1773762634272,-150.0,0.00016164,2]
[408498135,1773762634281,-150.0,0.00016164,2]
[408498136,1773762634291,-155.45652414,0.00016164,2]
[408498137,1773762634300,-150.0,0.00016164,2]
[408498138,1773762634310,-150.0,0.00016164,2]
[408498139,1773762634319,-155.47092211,0.00016164,2]
[408498140,1773762634328,-250.0,0.00016164,2]
[408498141,1773762634339,-212.76778111,0.00016164,2]
[408498142,1773762634348,-153.16199732,0.00016164,2]
[408498143,1773762634357,-160.0,0.00016181,7]
[408498144,1773762634367,-251.987641,0.00016181,7]
[408498145,1773762634376,-343.975282,0.00016181,7]
[408498146,1773762634386,-331.825328,0.00016181,7]
[408498147,1773762634395,-161.0,0.00016201,2]
[408498148,1773762634404,-160.0,0.00016204,7]
[408498149,1773762634414,-363.111653,0.00016204,7]
[408498150,1773762634423,-566.223307,0.00016204,7]
[408498151,1773762634433,-1486.98,0.00016267,2]
[408498152,1773762634443,-1538.0,0.00016301,2]
[408498153,1773762634452,-500.0,0.00016325,2]
[408498154,1773762634461,-14842.64456403,0.00016338,2]
[408498155,1773762634470,-160.0,0.00016386,7]
[408498156,1773762634479,-160.673742,0.00016386,7]
[408498157,1773762634489,-161.347484,0.00016386,7]
[408498158,1773762634498,-2400.0,0.00016399,2]
[408498159,1773762634508,-161.0,0.000164,2]
[408498160,1773762634518,-1538.0,0.000164,2]
[408498161,1773762634528,-23458.40860964,0.00016405,2]
[408498162,1773762634537,-166.66,0.00016431,2]
[408498163,1773762634546,-187.77,0.00016438,2]
[408498164,1773762634556,-916.06,0.00016438,2]
[408498165,1773762634565,-916.06,0.00016438,2]
[408498166,1773762634575,-916.06,0.00016438,2]
[408498167,1773762634584,-916.06,0.00016438,2]
[408498168,1773762634594,-916.06,0.00016438,2]
[408498169,1773762634603,-916.06,0.00016438,2]
[408498170,1773762634612,-202.49865762,0.00016438,2]
[408498171,1773762634621,-916.06,0.00016438,2]
[408498172,1773762634631,-916.06,0.00016438,2]
[408498173,1773762634640,-916.06,0.00016438,2]
[408498174,1773762634649,-916.06,0.00016438,2]
[408498175,1773762634659,-916.06,0.00016438,2]
[408498176,1773762634668,-500.0,0.00016438,2]
[408498177,1773762634677,-500.0,0.00016438,2]
[408498178,1773762634686,-500.0,0.00016438,2]
[408498179,1773762634695,-500.0,0.00016438,2]
[408498180,1773762634705,-500.0,0.00016438,2]
[408498181,1773762634714,-558.80287197,0.00016438,2]
[408498182,1773762634723,-161.0,0.0001651,2]
[408498183,1773762634733,-14842.64456397,0.00016512,2]
[408498184,1773762634743,-348.011929,0.00016521,7]
[408498185,1773762634752,-2400.0,0.00016535,2]
[408498186,1773762634762,-533.0,0.000166,2]
[408498187,1773762634771,-160.0,0.00016617,7]
[408498188,1773762634781,-327.561999,0.00016617,7]
[408498189,1773762634790,-495.123999,0.00016617,7]
[408498190,1773762634800,-2400.0,0.00016621,2]
[408498191,1773762634809,-200.0,0.00016677,7]
[408498192,1773762634819,-200.0,0.00016677,7]
[408498193,1773762634828,-200.0,0.00016677,7]
[408498194,1773762634838,-200.0,0.00016677,7]
[408498195,1773762634848,-160.0,0.00016677,7]
[408498196,1773762634857,-14842.64456397,0.00016685,2]
[408498197,1773762634867,-160.0,0.00016698,7]
[408498198,1773762634876,-437.661541,0.00016698,7]
[408498199,1773762634885,-715.323082,0.00016698,7]
[408498200,1773762634894,-864.0,0.00016719,5]
[408498201,1773762635002,-2400.0,0.00016719,2]
[408498202,1773762635012,-1942.0,0.00016719,2]
[408498203,1773762635022,-161.0,0.0001672,2]
[408498204,1773762635033,-1538.0,0.0001672,2]
[408498205,1773762635043,-197.55,0.00016745,2]
[408498206,1773762635053,-166.66,0.00016757,2]
[408498207,1773762635063,-1538.0,0.0001683,2]
[408498208,1773762635072,-2400.0,0.00016841,2]
[408498209,1773762635082,-2562.211,0.00016857,2]
[408498210,1773762635092,-165.365,0.00016857,2]
[408498211,1773762635101,-14842.64456397,0.00016859,2]
[408498212,1773762635112,-336.64627011,0.00016888,2]
[408498213,1773762635125,-2000.0,0.000169,6]
[408498214,1773762635134,-23458.40860964,0.00016903,2]
[408498215,1773762635144,-185.01807303,0.00016909,2]
[408498216,1773762635155,-500.0,0.00016909,2]
[408498217,1773762635165,-347.89582449,0.00016909,2]
[408498218,1773762635175,-269.27983429,0.00016909,2]
[408498219,1773762635184,-500.0,0.00016909,2]
[408498220,1773762635195,-4609.0,0.00016914,2]
[408498221,1773762635204,-879.98,0.00016919,2]
[408498222,1773762635214,-1175.0,0.00016933,2]
[408498223,1773762635223,-1175.0,0.00016949,2]
[408498224,1773762635233,-300.0,0.00017,2]
[408498225,1773762635242,-14842.64456397,0.00017032,2]
[408498226,1773762635252,-736.0,0.00017035,2]
[408498227,1773762635261,-1538.0,0.00017039,2]
[408498228,1773762635271,-1538.0,0.00017039,2]
[408498229,1773762635281,-161.0,0.00017039,2]
[408498230,1773762635291,-1538.0,0.00017039,2]
[408498231,1773762635300,-2400.0,0.00017039,2]
[408498232,1773762635311,-2400.0,0.0001704,2]
[408498233,1773762635320,-161.0,0.0001704,2]
[408498234,1773762635329,-1538.0,0.0001704,2]
[408498235,1773762635339,-1538.0,0.0001704,2]
[408498236,1773762635348,-1538.0,0.0001704,2]
[408498237,1773762635358,-1175.0,0.00017042,2]
[408498238,1773762635367,-166.66,0.00017082,2]
[408498239,1773762635378,-1175.0,0.00017094,2]
[408498240,1773762635387,-210.21710933,0.00017094,2]
[408498241,1773762635397,-5000.0,0.00017096,2]
[408498242,1773762635406,-1175.0,0.00017132,2]
[408498243,1773762635416,-1175.0,0.00017149,2]
[408498244,1773762635425,-2400.0,0.00017161,2]
[408498245,1773762635434,-25000.0,0.0001717,3]
[408498246,1773762635444,-25000.0,0.0001717,3]
[408498247,1773762635453,-500.0,0.00017173,2]
[408498248,1773762635463,-500.0,0.00017173,2]
[408498249,1773762635472,-25000.0,0.00017179,3]
[408498250,1773762635481,-500.0,0.00017187,2]
[408498251,1773762635490,-25000.0,0.00017188,3]
[408498252,1773762635500,-700.86,0.00017194,2]
[408498253,1773762635509,-500.0,0.00017194,2]
[408498254,1773762635519,-916.06,0.00017194,2]
[408498255,1773762635529,-25000.0,0.00017196,3]
[408498256,1773762635539,-373.47479422,0.00017204,2]
[408498257,1773762635548,-25000.0,0.00017205,3]
[408498258,1773762635558,-14842.64456397,0.00017206,2]
[408498259,1773762635568,-262.87397877,0.00017211,5]
[408498260,1773762635577,-25000.0,0.00017214,3]
[408498261,1773762635586,-1175.0,0.00017228,2]
[408498262,1773762635596,-161.0,0.00017261,2]
[408498263,1773762635606,-1175.0,0.00017276,2]
[408498264,1773762635616,-1175.0,0.000173,2]
[408498265,1773762635626,-1175.0,0.00017324,2]
[408498266,1773762635635,-1538.0,0.00017359,2]
[408498267,1773762635645,-2400.0,0.0001736,2]
[408498268,1773762635654,-1538.0,0.0001736,2]
[408498269,1773762635664,-2400.0,0.0001736,2]
[408498270,1773762635674,-1538.0,0.0001736,2]
[408498271,1773762635684,-376.0,0.0001736,2]
[408498272,1773762635694,-8383.04573307,0.0001736,2]
[408498273,1773762635703,-800.0,0.00017365,2]
[408498274,1773762635712,-800.0,0.00017372,2]
[408498275,1773762635722,-14842.64456397,0.00017379,2]
[408498276,1773762635732,-23458.40860964,0.00017402,2]
[408498277,1773762635741,-210.21710931,0.00017447,2]
[408498278,1773762635751,-2400.0,0.0001747,2]
[408498279,1773762635761,-400.0,0.0001747,2]
[408498280,1773762635771,-551.54591552,0.0001747,2]
[408498281,1773762635780,-2400.0,0.00017479,2]
[408498282,1773762635790,-486.0,0.00017489,5]
[408498283,1773762635799,-4100.0,0.000175,6]
[408498284,1773762635809,-197.55,0.00017506,2]
[408498285,1773762635818,-336.84,0.00017518,2]
[408498286,1773762635828,-1175.0,0.00017527,2]
[408498287,1773762635837,-1105.7,0.00017527,2]
[408498288,1773762635846,-14842.64456397,0.00017553,2]
[408498289,1773762635856,-291.0,0.00017564,2]
[408498290,1773762635866,-400.0,0.0001757,2]
[408498291,1773762635875,-6100.0,0.000176,6]
[408498292,1773762635885,-161.0,0.00017604,2]
[408498293,1773762635895,-1973.22752126,0.0001764,2]
[408498294,1773762635904,-317.89732139,0.00017651,2]
[408498295,1773762635913,-161.0,0.00017679,2]
[408498296,1773762635923,-1538.0,0.00017679,2]
[408498297,1773762635932,-1538.0,0.00017679,2]
[408498298,1773762635942,-165.0,0.00017679,2]
[408498299,1773762635951,-2400.0,0.00017679,2]
[408498300,1773762635961,-2400.0,0.00017679,2]
[408498301,1773762635970,-500.0,0.00017679,2]
[408498302,1773762635980,-1538.0,0.0001768,2]
[408498303,1773762635990,-161.0,0.0001768,2]
[408498304,1773762635999,-2400.0,0.0001768,2]
[408498305,1773762636008,-1538.0,0.0001768,2]
[408498306,1773762636020,-8200.0,0.000177,6]
[408498307,1773762636030,-500.0,0.00017721,2]
[408498308,1773762636040,-1006.88410936,0.00017721,2]
[408498309,1773762636051,-14842.64456397,0.00017726,2]
[408498310,1773762636061,-1175.0,0.00017794,2]
[408498311,1773762636071,-736.7207779,0.000178,2]
[408498312,1773762636081,-326.87889398,0.000178,2]
[408498313,1773762636091,-210.21710931,0.000178,2]
[408498314,1773762636100,-4243.68662052,0.000178,2]
[408498315,1773762636110,-10300.0,0.000178,6]
[408498316,1773762636122,-2482.8535393,0.00017802,2]
[408498317,1773762636132,-800.0,0.00017808,2]
[408498318,1773762636141,-500.0,0.00017811,2]
[408498319,1773762636150,-161.5334,0.0001782,2]
[408498320,1773762636161,-161.5334,0.0001782,2]
[408498321,1773762636171,-4243.68662049,0.0001782,2]
[408498322,1773762636180,-4243.68662049,0.0001784,2]
[408498323,1773762636189,-4243.68662049,0.0001786,2]
[408498324,1773762636201,-500.0,0.00017873,2]
[408498325,1773762636210,-500.0,0.00017873,2]
[408498326,1773762636219,-567.28130547,0.00017873,2]
[408498327,1773762636229,-500.0,0.00017873,2]
[408498328,1773762636238,-504.87765582,0.00017873,2]
[408498329,1773762636248,-500.0,0.00017873,2]
[408498330,1773762636257,-4243.68662049,0.0001788,2]
[408498331,1773762636267,-1175.0,0.00017883,2]
[408498332,1773762636280,-210.69184189,0.00017887,3]
[408498333,1773762636289,-4765.37430742,0.00017887,2]
[408498334,1773762636298,-1578.73589158,0.00017887,2]
[408498335,1773762636307,-285.70385453,0.00017887,2]
[408498336,1773762636316,-320.96072028,0.00017887,2]
[408498337,1773762636325,-27477.52440996,0.00017887,2]
[408498338,1773762636335,-641.41331539,0.0001789,2]
[408498339,1773762636346,-1486.98,0.00017894,2]
[408498340,1773762636356,-500.0,0.00017899,2]
[408498341,1773762636367,-644.96,0.00017899,2]
[408498342,1773762636377,-300.0,0.00017899,2]
[408498343,1773762636386,-317.38991143,0.00017899,2]
[408498344,1773762636395,-300.0,0.00017899,2]
[408498345,1773762636405,-666.0,0.00017899,2]